[Event "3rd Mersin Open 2018"]
[Site "Mersin"]
[Date "2018.09.09"]
[Round "1.8"]
[White "Bagaturov, Giorgi"]
[Black "Buker, Muhittin"]
[Result "1-0"]
[ECO "D37"]
[WhiteElo "2396"]
[BlackElo "1959"]
[Annotator "ChessBase"]
[PlyCount "104"]
[EventDate "2018.09.09"]
[EventType "swiss"]
[EventCountry "TUR"]
[SourceTitle "playchess.com"]
[Source "ChessBase"]
[SourceQuality "1"]
[TimeControl "5400+30"]

1. d4 Nf6 2. Nf3 d5 3. c4 e6 4. Nc3 Be7 5. Bf4 O-O 6. e3 a6 7. Rc1 Nbd7 8. c5 Nh5 9. Bd3 c6 10. Qc2 f5 11. Be5 Nxe5 12. Nxe5 Nf6 13. O-O Bd7 14. f3 Be8 15. Ne2 Nd7 16. Nf4 Nxe5 17. dxe5 Qd7 18. Ne2 Qc7 19. f4 b5 20. Nd4 Bd7 21. b4 Qc8 22. a4 Qc7 23. Ra1 Rfb8 24. Ra2 a5 25. axb5 cxb5 26. Rfa1 a4 27. c6 Bc8 28. Rb1 Qa7 29. Qe2 Rb6 30. Bxb5 a3 31. Rb3 Qb8 32. Qd3 Kf7 33. h3 g6 34. g4 Ra7 35. Kh2 Ra8 36. Rb1 Ra7 37. Kg3 Ra8 38. gxf5 exf5 39. h4 Be6 40. Kh3 Qf8 41. Nxe6 Kxe6 42. Bc4 Kf7 43. Bxd5+ Kg7 44. Rxa3 Rxa3 45. Qxa3 Qb8 46. Qc3 Bd8 47. b5 Qc7 48. Bc4 Qe7 49. Be2 Qxh4+ 50. Kg2 Qe7 51. Rd1 Kh6 52. e6 Qf8 1-0

[Event "3rd Mersin Open 2018"]
[Site "Mersin"]
[Date "2018.09.09"]
[Round "1.9"]
[White "Kizilkus, Akin"]
[Black "Koksal, Ege"]
[Result "0-1"]
[ECO "E12"]
[WhiteElo "1980"]
[BlackElo "2367"]
[Annotator "NA"]
[PlyCount "74"]
[EventDate "2018.09.09"]
[EventType "swiss"]
[EventCountry "TUR"]
[SourceTitle "playchess.com"]
[Source "ChessBase"]
[SourceQuality "1"]
[TimeControl "5400+30"]

1. d4 Nf6 2. c4 e6 3. Nf3 b6 4. a3 Bb7 5. Nc3 d5 6. cxd5 Nxd5 7. e3 g6 8. Bb5+ c6 9. Bd3 Bg7 10. O-O O-O 11. e4 Nxc3 12. bxc3 c5 13. Bg5 Qd6 14. e5 Qc7 15. Qe2 Nc6 16. Rad1 Na5 17. Be4 cxd4 18. cxd4 Rac8 19. Nd2 Nc6 20. Nf3 Ne7 21. Bxb7 Qxb7 22. Rd3 h6 23. Bd2 Rc2 24. Rc1 Rfc8 25. Rxc2 Rxc2 26. Rc3 Rxc3 27. Bxc3 Nd5 28. Bb2 Bf8 29. Qd3 b5 30. g3 a5 31. Nd2 b4 32. Qb3 Qc6 33. axb4 Bxb4 34. Nc4 a4 35. Qd3 Qa6 36. Qc2 a3 37. Ba1 Bc3 0-1

[Event "3rd Mersin Open 2018"]
[Site "Mersin"]
[Date "2018.09.09"]
[Round "1.10"]
[White "Gasimov, Parviz"]
[Black "Hajiyev, Shahin"]
[Result "1-0"]
[ECO "C88"]
[WhiteElo "2341"]
[BlackElo "1947"]
[Annotator "ChessBase"]
[PlyCount "119"]
[EventDate "2018.09.09"]
[EventType "swiss"]
[EventCountry "TUR"]
[SourceTitle "playchess.com"]
[Source "ChessBase"]
[SourceQuality "1"]
[TimeControl "5400+30"]

1. e4 e5 2. Nf3 Nc6 3. Bb5 a6 4. Ba4 Nf6 5. d3 b5 6. Bb3 Be7 7. O-O d6 8. a4 Bb7 9. Nbd2 O-O 10. Re1 Na5 11. Ba2 c5 12. c3 Re8 13. Nf1 Bf8 14. Ng3 g6 15. b4 cxb4 16. cxb4 Nc6 17. Qb3 Qd7 18. a5 Nd8 19. Be3 Ne6 20. Rad1 Rac8 21. Bb6 Bg7 22. Qb1 h6 23. d4 exd4 24. Nxd4 Nxd4 25. Bxd4 Qe7 26. e5 Nd5 27. exd6 Qxd6 28. Rxe8+ Rxe8 29. Bxg7 Kxg7 30. Bxd5 Bxd5 31. Qb2+ Qe5 32. Qxe5+ Rxe5 33. f4 Bb3 34. fxe5 Bxd1 35. Ne4 Bg4 36. Nc5 Bc8 37. Kf2 f5 38. Ke3 Kf7 39. Kd4 Ke7 40. g3 g5 41. Kd5 h5 42. e6 h4 43. gxh4 gxh4 44. Ke5 f4 45. Kxf4 Bxe6 46. Nxa6 Kd6 47. Ke4 Bd5+ 48. Kd4 Bg2 49. Nc5 h3 50. Ne4+ Kc6 51. Ke5 Bh1 52. Ng5 Bg2 53. Ne6 Bf1 54. Nd4+ Kb7 55. Kd6 Ka6 56. Kc7 Ka7 57. Nc6+ Ka6 58. Kb8 Bc4 59. Ne5 Be2 60. Nd7 1-0

[Event "3rd Mersin Open 2018"]
[Site "Mersin"]
[Date "2018.09.09"]
[Round "1.11"]
[White "Koc, Ahmet"]
[Black "Kaya, Onur"]
[Result "0-1"]
[ECO "A03"]
[WhiteElo "1363"]
[BlackElo "1689"]
[Annotator "NA"]
[PlyCount "44"]
[EventDate "2018.09.09"]
[EventType "swiss"]
[EventCountry "TUR"]
[SourceTitle "playchess.com"]
[Source "ChessBase"]
[SourceQuality "1"]
[TimeControl "5400+30"]

1. d3 d5 2. f4 Nf6 3. Nf3 e6 4. g3 Bd6 5. Bg2 Nc6 6. c3 Bd7 7. Nbd2 Qe7 8. Nb3 O-O-O 9. Be3 Ng4 10. Qd2 Nxe3 11. Qxe3 f6 12. Nfd4 Nxd4 13. Qxd4 Kb8 14. O-O-O e5 15. fxe5 Bxe5 16. Qf2 Ba4 17. d4 Bd6 18. Bxd5 Bxg3 19. Qf3 Rxd5 20. Qxd5 Bf4+ 21. Kb1 Bc6 22. Qc4 Bxh1 0-1

[Event "3rd Mersin Open 2018"]
[Site "Mersin"]
[Date "2018.09.09"]
[Round "1.13"]
[White "Caglar, Ata Arda"]
[Black "Sahin, Taha"]
[Result "0-1"]
[ECO "B40"]
[WhiteElo "1270"]
[BlackElo "1648"]
[Annotator "NA"]
[PlyCount "58"]
[EventDate "2018.09.09"]
[EventType "swiss"]
[EventCountry "TUR"]
[SourceTitle "playchess.com"]
[Source "ChessBase"]
[SourceQuality "1"]
[TimeControl "5400+30"]

1. e4 c5 2. Nf3 e6 3. Nc3 Nc6 4. b3 g6 5. Bb2 Bg7 6. Bb5 Nge7 7. Bxc6 Nxc6 8. Na4 Bxb2 9. Nxb2 O-O 10. O-O d5 11. exd5 exd5 12. Na4 c4 13. h3 Bf5 14. d3 cxd3 15. cxd3 d4 16. Nb2 b5 17. a3 Qd5 18. Rc1 Rfc8 19. Re1 Be6 20. Nd2 Bf5 21. Nf3 Be6 22. Nd2 Na5 23. b4 Rxc1 24. Qxc1 Nb3 25. Nxb3 Qxb3 26. Qa1 a5 27. Rb1 axb4 28. Nd1 Qa4 29. Rxb4 Qxb4 0-1

[Event "3rd Mersin Open 2018"]
[Site "Mersin"]
[Date "2018.09.10"]
[Round "2.11"]
[White "Kaya, Onur"]
[Black "Ozkan, Yusuf Taha"]
[Result "1-0"]
[ECO "C66"]
[WhiteElo "1689"]
[BlackElo "1276"]
[Annotator "NA RC"]
[PlyCount "79"]
[EventDate "2018.09.09"]
[EventType "swiss"]
[EventCountry "TUR"]
[SourceTitle "playchess.com"]
[Source "ChessBase"]
[SourceQuality "1"]
[TimeControl "5400+30"]

1. e4 {[%emt 0:04:30]} e5 {[%emt 0:00:30]} 2. Nf3 {[%emt 0:00:30]} Nc6 {[%emt 0:00:00]} 3. Bb5 {[%emt 0:00:30]} d6 {[%emt 0:00:00]} 4. d4 {[%emt 0:04:30]} exd4 {[%emt 0:00:30]} 5. Nxd4 {[%emt 0:02:30]} Bd7 {[%emt 0:00:30]} 6. O-O {[%emt 0:08:30]} Nf6 {[%emt 0:00:30]} 7. Bxc6 {[%emt 0:00:30]} Bxc6 {[%emt 0:00:30]} 8. Nxc6 {[%emt 0:04:30]} bxc6 {[%emt 0:00:00]} 9. Nc3 {[%emt 0:00:30]} Be7 {[%emt 0:00:00]} 10. f4 {[%emt 0:08:30]} O-O {[%emt 0:06:30]} 11. Qf3 {[%emt 0:06:30]} Qd7 {[%emt 0:00:30]} 12. f5 {[%emt 0:06:30]} Rab8 {[%emt 0:13:30]} 13. g4 {[%emt 0:20:30]} h6 {[%emt 0:04:30]} 14. b3 {[%emt 0:21:17]} Nh7 {[%emt 0:00:30]} 15. Ne2 {[%emt 0:01:28]} Bf6 {[%emt 0:00:30]} 16. Rb1 {[%emt 0:00:43]} Ng5 {[%emt 0:00:00]} 17. Bxg5 {[%emt 0:03:15]} Bxg5 {[%emt 0:00:00]} 18. Rbd1 {[%emt 0:00:36]} Qe7 {[%emt 0:01:30]} 19. Nd4 {[%emt 0:01:05]} Rb6 {[%emt 0:00:30]} 20. Rfe1 {[%emt 0:01:40]} Bh4 {[%emt 0:00:30]} 21. Re2 {[%emt 0:01:25]} c5 {[%emt 0:00:00]} 22. f6 {[%emt 0:00:04]} Bxf6 {[%emt 0:01:00]} 23. Nf5 {[%emt 0:00:03]} Qe6 {[%emt 0:00:30]} 24. Rf1 {[%emt 0:00:21]} Bd4+ {[%emt 0:00:30]} 25. Kh1 {[%emt 0:01:08]} g5 {[%emt 0:02:30]} 26. h4 {[%emt 0:00:47]} Bg7 {[%emt 0:01:30]} 27. hxg5 {[%emt 0:00:53]} hxg5 {[%emt 0:00:00]} 28. Rh2 {[%emt 0:00:00]} Re8 {[%emt 0:00:00]} 29. Re1 {[%emt 0:00:15]} d5 {[%emt 0:02:30]} 30. Qh3 {[%emt 0:00:01]} Qg6 {[%emt 0:00:00]} 31. exd5 {[%emt 0:01:27]} Rxe1+ {[%emt 0:00:00]} 32. Kg2 {[%emt 0:00:01]} Re2+ {[%emt 0:00:00]} 33. Kf1 {[%emt 0:00:35]} Rxh2 {[%emt 0:00:00]} 34. Ne7+ {[%emt 0:00:00]} Kf8 {[%emt 0:00:30]} 35. Nxg6+ {[%emt 0:00:00]} fxg6 {[%emt 0:00:30]} 36. Qxh2 {[%emt 0:00:12]} Rf6+ {[%emt 0:00:00]} 37. Ke2 {[%emt 0:00:34]} Rf7 {[%emt 0:00:00]} 38. d6 {[%emt 0:01:28]} cxd6 {[%emt 0:00:00]} 39. Qxd6+ {[%emt 0:00:04]} Re7+ {[%emt 0:00:00]} 40. Kd3 {[%emt 0:00:59]} 1-0

[Event "3rd Mersin Open 2018"]
[Site "Mersin"]
[Date "2018.09.10"]
[Round "2.12"]
[White "Ekmekci, Selyil"]
[Black "Polat, Ahmet Eren"]
[Result "0-1"]
[ECO "A48"]
[WhiteElo "1594"]
[BlackElo "1669"]
[Annotator "NA RC"]
[PlyCount "85"]
[EventDate "2018.09.09"]
[EventType "swiss"]
[EventCountry "TUR"]
[SourceTitle "playchess.com"]
[Source "ChessBase"]
[SourceQuality "1"]
[TimeControl "5400+30"]

1. d4 {[%emt 0:00:30]} Nf6 {[%emt 0:00:30]} 2. Bf4 {[%emt 0:00:00]} g6 {[%emt 0:00:00]} 3. Nf3 {[%emt 0:00:00]} Bg7 {[%emt 0:00:00]} 4. e3 {[%emt 0:00:30]} d6 {[%emt 0:00:30]} 5. h3 {[%emt 0:02:30]} Nbd7 {[%emt 0:00:00]} 6. Nbd2 {[%emt 0:00:30]} b6 {[%emt 0:00:00]} 7. c4 {[%emt 0:09:30]} Bb7 {[%emt 0:00:30]} 8. Qc2 {[%emt 0:01:30]} e6 {[%emt 0:07:30]} 9. Rb1 {[%emt 0:03:30]} Qe7 {[%emt 0:01:30]} 10. b4 {[%emt 0:02:30]} e5 {[%emt 0:06:30]} 11. dxe5 {[%emt 0:01:30]} dxe5 {[%emt 0:00:30]} 12. Bg3 {[%emt 0:12:30]} e4 {[%emt 0:12:30]} 13. Nd4 {[%emt 0:06:30]} Nh5 {[%emt 0:45:30]} 14. Ne2 {[%emt 0:17:30]} Nxg3 {[%emt 0:00:00]} 15. Nxg3 {[%emt 0:00:30]} f5 {[%emt 0:00:00]} 16. Ne2 {[%emt 0:07:30]} c5 {[%emt 0:02:30]} 17. b5 {[%emt 0:01:30]} Ne5 {[%emt 0:00:30]} 18. Nf4 {[%emt 0:05:30]} Rd8 {[%emt 0:00:30]} 19. Rb3 {[%emt 0:02:30]} Qd6 {[%emt 0:01:53]} 20. Rg1 {[%emt 0:16:56]} O-O {[%emt 0:03:13]} 21. Ra3 {[%emt 0:04:05]} Ra8 {[%emt 0:02:46]} 22. Nb3 {[%emt 0:01:58]} Rfd8 {[%emt 0:00:00]} 23. Nc1 {[%emt 0:00:14]} Rd7 {[%emt 0:02:52]} 24. Be2 {[%emt 0:00:22]} Bh6 {[%emt 0:06:18]} 25. h4 {[%emt 0:01:31]} Qf6 {[%emt 0:01:17]} 26. g3 {[%emt 0:00:25]} Bxf4 {[%emt 0:01:16]} 27. exf4 Nf7 {[%emt 0:00:16]} 28. Qc3 {[%emt 0:01:09]} Qd6 {[%emt 0:02:21]} 29. Qc2 {[%emt 0:00:41]} Nd8 {[%emt 0:00:47]} 30. Re3 {[%emt 0:00:23]} Ne6 {[%emt 0:00:18]} 31. Nb3 {[%emt 0:00:12]} Nd4 {[%emt 0:00:49]} 32. Qd1 {[%emt 0:00:44]} Rad8 {[%emt 0:00:15]} 33. Rc3 {[%emt 0:00:48]} Nf3+ {[%emt 0:01:14]} 34. Bxf3 {[%emt 0:00:28]} Qxd1+ {[%emt 0:00:09]} 35. Bxd1 {[%emt 0:00:33]} Rxd1+ {[%emt 0:00:03]} 36. Ke2 {[%emt 0:00:21]} Rxg1 {[%emt 0:00:04]} 37. Nd2 {[%emt 0:00:24]} Ra1 {[%emt 0:00:46]} 38. a3 {[%emt 0:00:30]} Ra2 {[%emt 0:00:00]} 39. Kf1 {[%emt 0:00:23]} Rdxd2 {[%emt 0:00:00]} 40. Rc1 {[%emt 0:00:38]} Rxf2+ {[%emt 0:00:00]} 41. Kg1 {[%emt 0:00:25]} Rg2+ {[%emt 0:00:00]} 42. Kf1 {[%emt 0:00:07]} e3 {[%emt 0:00:00]} 43. Ke1 {[%emt 0:01:04]} 0-1

[Event "3rd Mersin Open 2018"]
[Site "Mersin"]
[Date "2018.09.10"]
[Round "2.13"]
[White "Sahin, Taha"]
[Black "Kurtoglu, Fikret Alp"]
[Result "0-1"]
[ECO "B13"]
[WhiteElo "1648"]
[BlackElo "1227"]
[Annotator "NA RC"]
[PlyCount "106"]
[EventDate "2018.09.09"]
[EventType "swiss"]
[EventCountry "TUR"]
[SourceTitle "playchess.com"]
[Source "ChessBase"]
[SourceQuality "1"]
[TimeControl "5400+30"]

1. e4 {[%emt 0:00:30]} c6 {[%emt 0:00:30]} 2. d4 {[%emt 0:00:00]} d5 {[%emt 0:00:00]} 3. exd5 {[%emt 0:00:00]} cxd5 {[%emt 0:00:00]} 4. Bd3 {[%emt 0:00:30]} Nc6 {[%emt 0:01:30]} 5. c3 {[%emt 0:00:00]} Nf6 {[%emt 0:01:30]} 6. Bf4 {[%emt 0:00:00]} e6 {[%emt 0:00:30]} 7. Nf3 {[%emt 0:01:30]} Bd6 {[%emt 0:03:30]} 8. Bxd6 {[%emt 0:01:30]} Qxd6 {[%emt 0:00:30]} 9. O-O {[%emt 0:00:00]} O-O {[%emt 0:01:30]} 10. Re1 {[%emt 0:02:00]} Re8 {[%emt 0:04:30]} 11. Ne5 {[%emt 0:01:30]} g6 {[%emt 0:05:30]} 12. Nd2 {[%emt 0:09:30]} Nd7 {[%emt 0:03:30]} 13. Ndf3 {[%emt 0:01:30]} Ndxe5 {[%emt 0:00:30]} 14. Nxe5 {[%emt 0:00:30]} f6 {[%emt 0:08:30]} 15. Ng4 {[%emt 0:04:30]} Kg7 {[%emt 0:00:30]} 16. Qd2 {[%emt 0:01:30]} g5 {[%emt 0:01:30]} 17. Qc2 {[%emt 0:09:30]} h5 {[%emt 0:06:30]} 18. Ne3 {[%emt 0:03:30]} Bd7 {[%emt 0:03:30]} 19. Qe2 {[%emt 0:06:30]} e5 {[%emt 0:06:30]} 20. dxe5 {[%emt 0:02:30]} Nxe5 {[%emt 0:01:30]} 21. Bf5 {[%emt 0:09:30]} Ng4 {[%emt 0:03:30]} 22. Bxg4 {[%emt 0:00:30]} Bxg4 {[%emt 0:00:30]} 23. Qb5 {[%emt 0:10:30]} Qc6 {[%emt 0:09:30]} 24. Qxd5 {[%emt 0:02:30]} Rxe3 {[%emt 0:01:30]} 25. Qxc6 {[%emt 0:06:30]} Rxe1+ {[%emt 0:00:30]} 26. Rxe1 {[%emt 0:00:30]} bxc6 {[%emt 0:00:30]} 27. Re7+ {[%emt 0:00:00]} Kg6 {[%emt 0:00:30]} 28. Rc7 {[%emt 0:00:00]} Rb8 {[%emt 0:00:30]} 29. b3 {[%emt 0:00:30]} a5 {[%emt 0:03:30]} 30. Rxc6 {[%emt 0:00:30]} a4 {[%emt 0:00:30]} 31. b4 {[%emt 0:02:30]} Rc8 {[%emt 0:00:30]} 32. Rxc8 {[%emt 0:00:30]} Bxc8 {[%emt 0:00:30]} 33. a3 {[%emt 0:00:00]} Kf5 {[%emt 0:00:30]} 34. Kf1 {[%emt 0:00:00]} Ba6+ {[%emt 0:00:00]} 35. Ke1 {[%emt 0:00:00]} Ke4 {[%emt 0:00:00]} 36. Kd2 {[%emt 0:00:00]} f5 {[%emt 0:00:30]} 37. h3 {[%emt 0:06:30]} Bf1 {[%emt 0:01:30]} 38. f3+ {[%emt 0:01:30]} Kd5 {[%emt 0:00:00]} 39. g4 {[%emt 0:00:30]} hxg4 {[%emt 0:01:00]} 40. hxg4 {[%emt 0:00:30]} fxg4 {[%emt 0:00:00]} 41. fxg4 {[%emt 0:00:30]} Kc4 {[%emt 0:00:00]} 42. Ke3 {[%emt 0:01:08]} Kxc3 {[%emt 0:00:30]} 43. Ke4 {[%emt 0:00:18]} Kb3 {[%emt 0:00:30]} 44. Kf5 {[%emt 0:00:05]} Kxa3 {[%emt 0:00:00]} 45. Kxg5 {[%emt 0:00:30]} Kxb4 {[%emt 0:00:00]} 46. Kh6 {[%emt 0:00:29]} a3 {[%emt 0:00:00]} 47. g5 {[%emt 0:00:30]} Bd3 {[%emt 0:00:00]} 48. Kg7 {[%emt 0:00:00]} a2 {[%emt 0:00:00]} 49. Kf8 {[%emt 0:01:00]} a1=Q {[%emt 0:00:00]} 50. Kg8 {[%emt 0:00:00]} Qa7 {[%emt 0:00:30]} 51. Kf8 {[%emt 0:00:00]} Qd7 {[%emt 0:00:00]} 52. g6 {[%emt 0:00:30]} Bxg6 {[%emt 0:00:00]} 53. Kg8 {[%emt 0:00:00]} Qf7+ {[%emt 0:00:30]} 0-1

[Event "3rd Mersin Open 2018"]
[Site "Mersin"]
[Date "2018.09.10"]
[Round "2.14"]
[White "Soku, Mustafa Attila"]
[Black "Zuberoglu, Ibrahim Berk"]
[Result "*"]
[ECO "A91"]
[WhiteElo "1431"]
[BlackElo "1633"]
[Annotator "NA RC"]
[PlyCount "84"]
[EventDate "2018.09.09"]
[EventType "swiss"]
[EventCountry "TUR"]
[SourceTitle "playchess.com"]
[Source "ChessBase"]
[SourceQuality "1"]
[TimeControl "5400+30"]

1. d4 {[%emt 0:02:30]} f5 {[%emt 0:00:30]} 2. c4 {[%emt 0:02:30]} Nf6 {[%emt 0:00:30]} 3. Bg5 {[%emt 0:00:00]} e6 {[%emt 0:01:30]} 4. Nc3 {[%emt 0:00:00]} Be7 {[%emt 0:02:30]} 5. g3 {[%emt 0:02:30]} O-O {[%emt 0:04:30]} 6. Bg2 {[%emt 0:01:30]} d6 {[%emt 0:00:30]} 7. Qd2 {[%emt 0:03:30]} Nbd7 {[%emt 0:04:30]} 8. Nf3 {[%emt 0:05:30]} h6 {[%emt 0:16:30]} 9. Bxh6 {[%emt 0:01:30]} gxh6 {[%emt 0:05:30]} 10. Qxh6 {[%emt 0:00:00]} Ng4 {[%emt 0:01:30]} 11. Qxe6+ {[%emt 0:00:00]} Kg7 {[%emt 0:01:30]} 12. Nd5 {[%emt 0:07:30]} Bg5 {[%emt 0:33:30]} 13. Nxg5 {[%emt 0:06:30]} Qxg5 {[%emt 0:00:30]} 14. h4 {[%emt 0:08:30]} Qd8 {[%emt 0:02:30]} 15. Qe7+ {[%emt 0:07:30]} Qxe7 {[%emt 0:00:30]} 16. Nxe7 {[%emt 0:00:00]} c6 {[%emt 0:00:00]} 17. Nxc8 {[%emt 0:01:00]} Raxc8 {[%emt 0:00:00]} 18. O-O {[%emt 0:03:30]} f4 {[%emt 0:02:46]} 19. Bf3 {[%emt 0:03:30]} Ndf6 {[%emt 0:01:41]} 20. gxf4 {[%emt 0:04:30]} Rh8 {[%emt 0:00:53]} 21. Bxg4 {[%emt 0:00:00]} Nxg4 {[%emt 0:00:10]} 22. Kg2 {[%emt 0:01:00]} Rxh4 {[%emt 0:07:42]} 23. Rh1 {[%emt 0:02:30]} Rh6 {[%emt 0:00:39]} 24. Rxh6 {[%emt 0:00:30]} Nxh6 {[%emt 0:00:03]} 25. Kf3 {[%emt 0:00:30]} Nf5 {[%emt 0:00:48]} 26. Rd1 {[%emt 0:02:30]} d5 {[%emt 0:00:34]} 27. c5 {[%emt 0:03:30]} b6 {[%emt 0:04:45]} 28. cxb6 {[%emt 0:01:30]} axb6 {[%emt 0:00:02]} 29. e3 {[%emt 0:00:00]} Nd6 {[%emt 0:02:10]} 30. Ke2 {[%emt 0:03:00]} Ra8 {[%emt 0:01:34]} 31. a3 {[%emt 0:01:30]} Ra4 {[%emt 0:01:57]} 32. Rc1 {[%emt 0:00:30]} Rc4 {[%emt 0:00:15]} 33. Rg1+ {[%emt 0:03:30]} Kf6 {[%emt 0:00:58]} 34. Kd3 {[%emt 0:00:30]} Ra4 {[%emt 0:01:04]} 35. Rg8 {[%emt 0:03:30]} c5 {[%emt 0:02:14]} 36. dxc5 {[%emt 0:00:30]} bxc5 {[%emt 0:00:03]} 37. Rb8 {[%emt 0:01:56]} Kf5 {[%emt 0:00:40]} 38. f3 {[%emt 0:06:21]} Ke6 {[%emt 0:00:30]} 39. Rb6 {[%emt 0:00:42]} Kd7 {[%emt 0:00:18]} 40. Rb8 {[%emt 0:01:14]} Nc8 {[%emt 0:00:37]} 41. Kc3 {[%emt 0:00:04]} Rc4+ {[%emt 0:00:33]} 42. Kd2 {[%emt 0:00:32]} Kc7 {[%emt 0:00:37]} *

[Event "3rd Mersin Open 2018"]
[Site "Mersin"]
[Date "2018.09.10"]
[Round "3.8"]
[White "Buyukasik, Diyap"]
[Black "Tofan, Ibrahim"]
[Result "1-0"]
[ECO "A38"]
[WhiteElo "2305"]
[BlackElo "2116"]
[Annotator "NA"]
[PlyCount "103"]
[EventDate "2018.09.09"]
[EventType "swiss"]
[EventCountry "TUR"]
[SourceTitle "playchess.com"]
[Source "ChessBase"]
[SourceQuality "1"]
[TimeControl "5400+30"]

1. Nf3 {[%emt 0:00:30]} Nf6 {[%emt 0:00:30]} 2. g3 g6 {[%emt 0:00:00]} 3. Bg2 {[%emt 0:01:00]} Bg7 {[%emt 0:00:00]} 4. O-O {[%emt 0:00:00]} O-O {[%emt 0:00:30]} 5. c4 {[%emt 0:00:00]} c5 {[%emt 0:00:00]} 6. Nc3 {[%emt 0:01:30]} Nc6 {[%emt 0:00:00]} 7. d3 {[%emt 0:05:30]} d6 {[%emt 0:01:30]} 8. a3 {[%emt 0:05:30]} Bg4 {[%emt 0:06:30]} 9. h3 {[%emt 0:01:30] A38: Symmetrical English vs ...g6: 4 Bg2 Bg7 5 Nf3 Nf6} (9. Rb1 d5 10. Bd2 {½-½ (10) Stevic,H (2623)-Tadic,B (2493) Neum 2011}) 9... Bxf3 {[%emt 0:01:30]} 10. Bxf3 {[%emt 0:00:30]} Qd7 {[%emt 0:00:30]} 11. Bg2 {[%emt 0:00:30]} e6 {[%emt 0:03:30]} 12. Rb1 {[%emt 0:01:30]} a5 {[%emt 0:05:30]} 13. Bd2 $146 {[%emt 0:03:30]} ({Predecessor:} 13. Be3 Rac8 14. Na2 b6 15. Nc3 Rfd8 16. Na4 Qc7 {0-1 (38) Ballina Amandi,C-Loureda Garcia,J Asturias 1992}) 13... Rfe8 {[%emt 0:09:30]} 14. e3 {[%emt 0:01:30]} d5 {[%emt 0:04:30]} 15. cxd5 {[%emt 0:01:30]} exd5 {[%emt 0:01:30]} 16. Na4 {[%emt 0:01:30]} Qd6 {[%emt 0:03:30]} 17. Qc2 {[%emt 0:03:30]} Nd7 {[%emt 0:02:30]} 18. Rfc1 {[%emt 0:00:30]} b6 {[%emt 0:05:30]} 19. Qb3 {[%emt 0:05:30]} Ne7 {[%emt 0:01:30]} 20. Nc3 {[%emt 0:12:30]} Nf6 {[%emt 0:05:30]} 21. Rd1 {[%emt 0:07:30]} Rad8 {[%emt 0:03:30]} 22. e4 {[%emt 0:05:30]} d4 {[%emt 0:22:30]} 23. Nb5 {[%emt 0:11:30]} Qd7 {[%emt 0:03:43]} 24. e5 {[%emt 0:02:30]} Nfd5 {[%emt 0:13:27]} 25. Nd6 {[%emt 0:04:30]} Bxe5 {[%emt 0:03:23]} 26. Nxe8 {[%emt 0:00:30]} a4 {[%emt 0:01:35]} 27. Qa2 {[%emt 0:00:30]} Rxe8 {[%emt 0:00:50]} 28. Re1 {[%emt 0:00:30]} Qd6 {[%emt 0:00:27]} 29. f4 {[%emt 0:06:40]} Ne3 {[%emt 0:00:15]} 30. fxe5 {[%emt 0:00:47]} Qxe5 {[%emt 0:00:03]} 31. Bxe3 {[%emt 0:00:35]} dxe3 {[%emt 0:00:00]} 32. g4 {[%emt 0:00:00]} g5 {[%emt 0:01:11]} 33. Rf1 $18 {[%emt 0:03:04]} Rf8 {[%emt 0:00:04]} 34. Rbe1 {[%emt 0:01:02]} Ng6 {[%emt 0:00:52]} 35. Qd5 {[%emt 0:00:41]} e2 {[%emt 0:00:55]} 36. Qxe5 {[%emt 0:02:26]} exf1=Q+ {[%emt 0:00:19]} 37. Kxf1 {[%emt 0:00:30]} Nxe5 {[%emt 0:00:30]} 38. Rxe5 {[%emt 0:00:30]} h6 {[%emt 0:00:31]} 39. Bc6 {[%emt 0:00:30]} f5 {[%emt 0:00:30]} 40. gxf5 {[%emt 0:00:30]} Kg7 {[%emt 0:00:30]} 41. Be4 {[%emt 0:00:30]} Rd8 {[%emt 0:00:24]} 42. Re7+ {[%emt 0:00:16]} Kf8 {[%emt 0:00:19]} 43. Rh7 {[%emt 0:00:26]} Rd6 {[%emt 0:00:12]} 44. Ke2 {[%emt 0:00:02]} Kg8 {[%emt 0:00:25]} 45. Ra7 {[%emt 0:00:10]} b5 {[%emt 0:00:45]} 46. Rc7 {[%emt 0:00:04]} c4 {[%emt 0:00:26]} 47. dxc4 {[%emt 0:00:08]} bxc4 {[%emt 0:00:12]} 48. Rxc4 {[%emt 0:00:08]} Rb6 {[%emt 0:00:25]} 49. Rb4 {[%emt 0:00:05]} Ra6 {[%emt 0:00:00]} 50. Bc2 {[%emt 0:00:44]} Kg7 {[%emt 0:00:16]} 51. Rxa4 {[%emt 0:00:24]} Rc6 {[%emt 0:00:20]} 52. Bd3 {[%emt 0:00:03]} 1-0

[Event "3rd Mersin Open 2018"]
[Site "Mersin"]
[Date "2018.09.10"]
[Round "3.9"]
[White "Annaberdiyev, Babageldi"]
[Black "Olcum, Ahmet"]
[Result "*"]
[ECO "A41"]
[WhiteElo "2214"]
[BlackElo "2302"]
[Annotator "NA"]
[PlyCount "24"]
[EventDate "2018.09.09"]
[EventType "swiss"]
[EventCountry "TUR"]
[SourceTitle "playchess.com"]
[Source "ChessBase"]
[SourceQuality "1"]
[TimeControl "5400+30"]

1. d4 {[%emt 0:02:30]} d6 {[%emt 0:04:30]} 2. g3 {[%emt 0:01:30]} g6 {[%emt 0:00:30]} 3. Bg2 {[%emt 0:00:30]} Bg7 {[%emt 0:00:00]} 4. Nf3 {[%emt 0:00:00]} Nd7 {[%emt 0:00:00]} 5. O-O {[%emt 0:00:00]} e5 {[%emt 0:03:30]} 6. dxe5 {[%emt 0:01:30]} dxe5 {[%emt 0:00:30]} 7. e4 {[%emt 0:00:30]} Ne7 {[%emt 0:01:30]} 8. Qe2 {[%emt 0:00:30]} O-O {[%emt 0:07:30]} 9. Rd1 {[%emt 0:01:30]} Qe8 $14 {[%emt 0:15:30]} 10. b3 {[%emt 0:18:30]} Nc5 {[%emt 0:17:30]} 11. Ba3 {[%emt 0:01:30]} Ne6 {[%emt 0:00:30]} 12. c3 {[%emt 0:01:30]} Bd7 {[%emt 0:04:30]} *